[Event "*** Titled Tuesday Blitz"]
[Site "Chess.com"]
[Date "2020.04.28"]
[Round "1"]
[White "Malysch"]
[Black "Keranke"]
[Result "0-1"]
[WhiteElo "2402"]
[BlackElo "2763"]
[TimeControl "180+1"]
[EndTime "10:07:32 PDT"]
[Termination "Keranke won on time"]

1. d4 {[%clk 0:02:59.2]} 1... d5 {[%clk 0:02:58.3]} 2. c4 {[%clk 0:02:59.6]}
2... e6 {[%clk 0:02:58.9]} 3. Nf3 {[%clk 0:02:59.6]} 3... a6 {[%clk 0:02:59.2]}
4. Nbd2 {[%clk 0:02:51.2]} 4... Nf6 {[%clk 0:02:56.5]} 5. g3 {[%clk 0:02:49.9]}
5... Be7 {[%clk 0:02:55.8]} 6. Bg2 {[%clk 0:02:49.8]} 6... O-O {[%clk
0:02:56.1]} 7. O-O {[%clk 0:02:49.7]} 7... c5 {[%clk 0:02:48.9]} 8. cxd5 {[%clk
0:02:46.2]} 8... exd5 {[%clk 0:02:49.8]} 9. dxc5 {[%clk 0:02:43.9]} 9... Bxc5
{[%clk 0:02:44.7]} 10. Nb3 {[%clk 0:02:42.7]} 10... Be7 {[%clk 0:02:44.6]} 11.
Nfd4 {[%clk 0:02:40.9]} 11... Nc6 {[%clk 0:02:44.1]} 12. Bf4 {[%clk 0:02:37.1]}
12... Re8 {[%clk 0:02:39.1]} 13. Rc1 {[%clk 0:02:36.2]} 13... Qb6 {[%clk
0:02:30.9]} 14. Nxc6 {[%clk 0:02:26.8]} 14... bxc6 {[%clk 0:02:31.8]} 15. Be3
{[%clk 0:02:26.6]} 15... Qc7 {[%clk 0:02:28.6]} 16. Bc5 {[%clk 0:02:23.6]} 16...
Bg4 {[%clk 0:02:20.6]} 17. Re1 {[%clk 0:02:07.6]} 17... Rab8 {[%clk 0:02:20.2]}
18. Qd2 {[%clk 0:02:02.7]} 18... Ne4 {[%clk 0:02:08.5]} 19. Bxe4 {[%clk
0:01:54.9]} 19... dxe4 {[%clk 0:02:09.4]} 20. Bxe7 {[%clk 0:01:46.4]} 20... Rxe7
{[%clk 0:02:09.7]} 21. Qe3 {[%clk 0:01:40.5]} 21... Be6 {[%clk 0:01:48.7]} 22.
Nd4 {[%clk 0:01:35]} 22... Bd5 {[%clk 0:01:47.9]} 23. b3 {[%clk 0:01:29.7]}
23... Rc8 {[%clk 0:01:39.5]} 24. Red1 {[%clk 0:01:27.1]} 24... Re5 {[%clk
0:01:34.5]} 25. Qf4 {[%clk 0:01:05.6]} 25... h6 {[%clk 0:01:23.2]} 26. Nxc6
{[%clk 0:00:59.1]} 26... Bxc6 {[%clk 0:01:23.1]} 27. Rxc6 {[%clk 0:00:58.2]}
27... Qxc6 {[%clk 0:01:24]} 28. Qxe5 {[%clk 0:00:57.8]} 28... Qc2 {[%clk
0:01:24.6]} 29. Rd7 {[%clk 0:00:41.2]} 29... Qxe2 {[%clk 0:01:21.7]} 30. Qf4
{[%clk 0:00:26.5]} 30... Rf8 {[%clk 0:01:16.3]} 31. a4 {[%clk 0:00:19.4]} 31...
Qe1+ {[%clk 0:01:01.3]} 32. Kg2 {[%clk 0:00:18.9]} 32... Qb4 {[%clk 0:01:02.2]}
33. a5 {[%clk 0:00:12.9]} 33... Qb5 {[%clk 0:00:52.3]} 34. Re7 {[%clk
0:00:10.7]} 34... Qxb3 {[%clk 0:00:40.5]} 35. Qxe4 {[%clk 0:00:10.4]} 35... Qa3
{[%clk 0:00:41.1]} 36. Qe5 {[%clk 0:00:09.9]} 36... Qa2 {[%clk 0:00:38.2]} 37.
h4 {[%clk 0:00:09.2]} 37... Qc4 {[%clk 0:00:34.2]} 38. Kh2 {[%clk 0:00:07.7]}
38... Qc6 {[%clk 0:00:33.3]} 39. Rc7 {[%clk 0:00:06.2]} 39... Qf3 {[%clk
0:00:32.6]} 40. Qf4 {[%clk 0:00:06.1]} 40... Qd1 {[%clk 0:00:28.2]} 41. Qe5
{[%clk 0:00:04.6]} 41... Qd2 {[%clk 0:00:26.6]} 42. Qf4 {[%clk 0:00:04.3]} 42...
Qxa5 {[%clk 0:00:26.6]} 43. Rb7 {[%clk 0:00:01.7]} 43... Qc3 {[%clk 0:00:25.3]}
44. Rb8 {[%clk 0:00:01.6]} 44... Qc5 {[%clk 0:00:22.7]} 0-1

[Event "*** Titled Tuesday Blitz"]
[Site "Chess.com"]
[Date "2020.04.28"]
[Round "1"]
[White "madalin18"]
[Black "Feegus"]
[Result "1-0"]
[WhiteElo "2098"]
[BlackElo "2486"]
[TimeControl "180+1"]
[EndTime "10:07:32 PDT"]
[Termination "madalin18 won by resignation"]

1. e4 {[%clk 0:03:00.9]} 1... e6 {[%clk 0:02:58.1]} 2. d4 {[%clk 0:03:00.4]}
2... d5 {[%clk 0:02:57.1]} 3. Nc3 {[%clk 0:02:59.9]} 3... Nf6 {[%clk 0:02:55]}
4. e5 {[%clk 0:02:59.4]} 4... Nfd7 {[%clk 0:02:54.8]} 5. f4 {[%clk 0:02:59.5]}
5... c5 {[%clk 0:02:55.2]} 6. Nf3 {[%clk 0:02:59.3]} 6... Nc6 {[%clk 0:02:56.1]}
7. Be3 {[%clk 0:02:58.8]} 7... cxd4 {[%clk 0:02:56.7]} 8. Nxd4 {[%clk 0:02:57]}
8... Bc5 {[%clk 0:02:57.6]} 9. Na4 {[%clk 0:02:14.3]} 9... Bb4+ {[%clk
0:02:47.4]} 10. c3 {[%clk 0:02:13.9]} 10... Be7 {[%clk 0:02:46.9]} 11. Bd3
{[%clk 0:02:07.3]} 11... O-O {[%clk 0:02:45.9]} 12. O-O {[%clk 0:02:06.3]} 12...
a6 {[%clk 0:02:40.7]} 13. Qh5 {[%clk 0:01:59.8]} 13... g6 {[%clk 0:02:40.2]} 14.
Qh6 {[%clk 0:01:59.5]} 14... Nxd4 {[%clk 0:02:37.6]} 15. cxd4 {[%clk 0:01:57.8]}
15... Re8 {[%clk 0:02:33.3]} 16. Rf3 {[%clk 0:01:56.9]} 16... Bf8 {[%clk
0:02:33]} 17. Qh3 {[%clk 0:01:55.6]} 17... Bg7 {[%clk 0:02:33]} 18. g4 {[%clk
0:01:48.8]} 18... b5 {[%clk 0:02:32.7]} 19. Nc3 {[%clk 0:01:47]} 19... b4 {[%clk
0:02:27]} 20. Ne2 {[%clk 0:01:45.5]} 20... a5 {[%clk 0:02:27.1]} 21. f5 {[%clk
0:01:41.2]} 21... Ba6 {[%clk 0:02:27]} 22. Bxa6 {[%clk 0:01:38.2]} 22... Rxa6
{[%clk 0:02:26.3]} 23. f6 {[%clk 0:01:33.6]} 23... Bh8 {[%clk 0:01:23.1]} 24.
Qh4 {[%clk 0:01:29.5]} 24... Rc6 {[%clk 0:01:13.3]} 25. Rh3 {[%clk 0:01:28.7]}
25... Nf8 {[%clk 0:01:13.2]} 26. Bh6 {[%clk 0:01:28.4]} 26... g5 {[%clk
0:01:08.1]} 27. Bxg5 {[%clk 0:01:12.4]} 27... Rc2 {[%clk 0:01:01]} 28. Nf4
{[%clk 0:01:01.4]} 28... Qb6 {[%clk 0:01:00.4]} 29. Rd1 {[%clk 0:00:55.8]} 29...
Rec8 {[%clk 0:00:58.7]} 30. Bh6 {[%clk 0:00:55.5]} 30... Ng6 {[%clk 0:00:55]}
31. Nxg6 {[%clk 0:00:54]} 31... fxg6 {[%clk 0:00:50.9]} 32. Bg7 {[%clk
0:00:49.5]} 32... h5 {[%clk 0:00:45]} 33. Qg5 {[%clk 0:00:33.4]} 33... R2c7
{[%clk 0:00:22.6]} 34. Qxg6 {[%clk 0:00:25]} 34... Bxg7 {[%clk 0:00:21.7]} 35.
Rxh5 {[%clk 0:00:15.5]} 35... Qb5 {[%clk 0:00:10.2]} 36. Qh7+ {[%clk 0:00:14.3]}
36... Kf8 {[%clk 0:00:10.4]} 37. fxg7+ {[%clk 0:00:14.3]} 37... Rxg7 {[%clk
0:00:10.4]} 38. Rf1+ {[%clk 0:00:14.3]} 38... Ke8 {[%clk 0:00:07.6]} 39. Qxg7
{[%clk 0:00:12.4]} 1-0

[Event "*** Titled Tuesday Blitz"]
[Site "Chess.com"]
[Date "2020.04.28"]
[Round "1"]
[White "Tiqr777"]
[Black "Ceejay271"]
[Result "0-1"]
[WhiteElo "2589"]
[BlackElo "2307"]
[TimeControl "180+1"]
[EndTime "10:07:33 PDT"]
[Termination "Ceejay271 won by resignation"]

1. g3 {[%clk 0:03:00.9]} 1... d5 {[%clk 0:02:59.4]} 2. Bg2 {[%clk 0:03:00.4]}
2... Nf6 {[%clk 0:02:59]} 3. c4 {[%clk 0:03:00.8]} 3... e6 {[%clk 0:02:58]} 4.
Qc2 {[%clk 0:02:59.9]} 4... Be7 {[%clk 0:02:55.9]} 5. Nf3 {[%clk 0:02:59.9]}
5... O-O {[%clk 0:02:56.5]} 6. O-O {[%clk 0:02:59.9]} 6... c5 {[%clk 0:02:56]}
7. b3 {[%clk 0:02:58.4]} 7... Nc6 {[%clk 0:02:55.2]} 8. Bb2 {[%clk 0:02:58.7]}
8... d4 {[%clk 0:02:53.4]} 9. a3 {[%clk 0:02:57.6]} 9... a5 {[%clk 0:02:52.2]}
10. d3 {[%clk 0:02:56.3]} 10... e5 {[%clk 0:02:52]} 11. Nbd2 {[%clk 0:02:56.6]}
11... Bf5 {[%clk 0:02:50.4]} 12. Ne4 {[%clk 0:02:50]} 12... Nxe4 {[%clk
0:02:47.7]} 13. dxe4 {[%clk 0:02:49.5]} 13... Be6 {[%clk 0:02:48.2]} 14. Ne1
{[%clk 0:02:35]} 14... a4 {[%clk 0:02:41.4]} 15. bxa4 {[%clk 0:02:24.9]} 15...
Na5 {[%clk 0:02:40.8]} 16. Nd3 {[%clk 0:02:25.3]} 16... Nxc4 {[%clk 0:02:38.6]}
17. Bc1 {[%clk 0:02:25.6]} 17... Qa5 {[%clk 0:02:29.6]} 18. f4 {[%clk
0:02:19.5]} 18... f6 {[%clk 0:02:23.5]} 19. Rb1 {[%clk 0:01:59.7]} 19... b6
{[%clk 0:02:21.3]} 20. Bh3 {[%clk 0:01:47]} 20... Bxh3 {[%clk 0:01:52.3]} 21.
Qxc4+ {[%clk 0:01:45.7]} 21... Kh8 {[%clk 0:01:51.9]} 22. Rd1 {[%clk 0:01:42.6]}
22... Qxa4 {[%clk 0:01:44.3]} 23. Qxa4 {[%clk 0:01:41.5]} 23... Rxa4 {[%clk
0:01:45.2]} 24. Rxb6 {[%clk 0:01:41.3]} 24... c4 {[%clk 0:01:45]} 25. Nb2 {[%clk
0:01:38.9]} 25... Rxa3 {[%clk 0:01:37.3]} 26. Nxc4 {[%clk 0:01:38.8]} 26... Rc3
{[%clk 0:01:36.7]} 27. Nd2 {[%clk 0:01:32.7]} 27... Bc5 {[%clk 0:01:33.7]} 28.
Rb7 {[%clk 0:00:50.4]} 28... d3+ {[%clk 0:01:31.3]} 29. e3 {[%clk 0:00:50.7]}
29... Bxe3+ {[%clk 0:01:30.4]} 30. Kh1 {[%clk 0:00:51.1]} 30... exf4 {[%clk
0:01:29.6]} 31. gxf4 {[%clk 0:00:48.7]} 31... Bxf4 {[%clk 0:01:19.3]} 32. Nb3
{[%clk 0:00:36.2]} 32... Bg4 {[%clk 0:00:58.1]} 33. Bxf4 {[%clk 0:00:28.9]}
33... Bxd1 {[%clk 0:00:56.7]} 34. Nd2 {[%clk 0:00:29.6]} 34... g5 {[%clk
0:00:50.5]} 35. Be3 {[%clk 0:00:28.8]} 35... Rc2 {[%clk 0:00:33.5]} 36. Kg2
{[%clk 0:00:28.3]} 36... f5 {[%clk 0:00:30.1]} 37. exf5 {[%clk 0:00:27.9]} 37...
Rxf5 {[%clk 0:00:28.4]} 38. Kg3 {[%clk 0:00:28]} 38... h5 {[%clk 0:00:26.2]} 39.
h4 {[%clk 0:00:26.8]} 39... gxh4+ {[%clk 0:00:23.2]} 40. Kxh4 {[%clk 0:00:25.8]}
40... Kg8 {[%clk 0:00:22.9]} 41. Rd7 {[%clk 0:00:22.5]} 41... Be2 {[%clk
0:00:21.8]} 42. Ne4 {[%clk 0:00:22.2]} 42... Rc4 {[%clk 0:00:19.9]} 43. Bd4
{[%clk 0:00:20.1]} 43... Rf4+ {[%clk 0:00:18.4]} 44. Kg5 {[%clk 0:00:19.9]}
44... Rxe4 {[%clk 0:00:18.9]} 45. Rg7+ {[%clk 0:00:18.4]} 45... Kf8 {[%clk
0:00:18.7]} 46. Bf6 {[%clk 0:00:14.3]} 46... Rg4+ {[%clk 0:00:17.7]} 0-1

[Event "*** Titled Tuesday Blitz"]
[Site "Chess.com"]
[Date "2020.04.28"]
[Round "1"]
[White "MFguimaraes"]
[Black "rpragchess"]
[Result "0-1"]
[WhiteElo "2427"]
[BlackElo "2809"]
[TimeControl "180+1"]
[EndTime "10:07:35 PDT"]
[Termination "rpragchess won by checkmate"]

1. e4 {[%clk 0:02:57.8]} 1... c5 {[%clk 0:02:58.2]} 2. Nf3 {[%clk 0:02:57.4]}
2... e6 {[%clk 0:02:58.5]} 3. g3 {[%clk 0:02:57.2]} 3... Nc6 {[%clk 0:02:57.9]}
4. Bg2 {[%clk 0:02:57.3]} 4... Nf6 {[%clk 0:02:58.4]} 5. Nc3 {[%clk 0:02:56.8]}
5... d6 {[%clk 0:02:57.4]} 6. O-O {[%clk 0:02:56.2]} 6... Be7 {[%clk 0:02:56.6]}
7. Re1 {[%clk 0:02:55.5]} 7... O-O {[%clk 0:02:52.8]} 8. e5 {[%clk 0:02:54.4]}
8... dxe5 {[%clk 0:02:28.1]} 9. Nxe5 {[%clk 0:02:55.3]} 9... Nxe5 {[%clk
0:02:26.4]} 10. Rxe5 {[%clk 0:02:56.2]} 10... Qc7 {[%clk 0:02:26.9]} 11. Re1
{[%clk 0:02:52.9]} 11... Bd7 {[%clk 0:02:27.2]} 12. d3 {[%clk 0:02:53]} 12...
Bc6 {[%clk 0:02:27.8]} 13. Bf4 {[%clk 0:02:52.9]} 13... Qb6 {[%clk 0:02:28.3]}
14. Bxc6 {[%clk 0:02:49]} 14... Qxc6 {[%clk 0:02:29.2]} 15. Ne4 {[%clk
0:02:45.4]} 15... Nd5 {[%clk 0:02:19.4]} 16. Qf3 {[%clk 0:02:39.5]} 16... Rae8
{[%clk 0:02:10.9]} 17. Be5 {[%clk 0:02:35.2]} 17... f6 {[%clk 0:02:09.4]} 18.
Bc3 {[%clk 0:02:30.4]} 18... e5 {[%clk 0:02:07.5]} 19. Nd2 {[%clk 0:02:26.8]}
19... Bd6 {[%clk 0:02:02.5]} 20. Nc4 {[%clk 0:02:24.5]} 20... Bc7 {[%clk
0:02:02.4]} 21. a4 {[%clk 0:02:19.4]} 21... Qd7 {[%clk 0:01:54.7]} 22. Re2
{[%clk 0:02:05.5]} 22... b6 {[%clk 0:01:51.9]} 23. Bd2 {[%clk 0:02:00.4]} 23...
a6 {[%clk 0:01:51.1]} 24. a5 {[%clk 0:01:56.2]} 24... b5 {[%clk 0:01:49.4]} 25.
Nb6 {[%clk 0:01:52]} 25... Bxb6 {[%clk 0:01:12.2]} 26. axb6 {[%clk 0:01:52.9]}
26... Nxb6 {[%clk 0:00:45.8]} 27. Rxa6 {[%clk 0:01:51.9]} 27... Nd5 {[%clk
0:00:46.1]} 28. c4 {[%clk 0:01:49.3]} 28... bxc4 {[%clk 0:00:42.7]} 29. dxc4
{[%clk 0:01:49.5]} 29... Ne7 {[%clk 0:00:43.5]} 30. Be3 {[%clk 0:01:40]} 30...
Qd3 {[%clk 0:00:38.4]} 31. Rd2 {[%clk 0:01:26.4]} 31... Qxc4 {[%clk 0:00:37.9]}
32. Ra7 {[%clk 0:01:23.9]} 32... e4 {[%clk 0:00:23.9]} 33. Qh5 {[%clk
0:01:12.5]} 33... Nc6 {[%clk 0:00:20.5]} 34. Rc7 {[%clk 0:00:31.1]} 34... Ne5
{[%clk 0:00:19.7]} 35. Rxc5 {[%clk 0:00:27.8]} 35... Qe6 {[%clk 0:00:15.1]} 36.
Kg2 {[%clk 0:00:26.4]} 36... Rc8 {[%clk 0:00:15.5]} 37. Rdc2 {[%clk 0:00:25.5]}
37... Rxc5 {[%clk 0:00:15.1]} 38. Rxc5 {[%clk 0:00:26.4]} 38... Qd7 {[%clk
0:00:12.1]} 39. Qh4 {[%clk 0:00:25.8]} 39... Qd3 {[%clk 0:00:11.4]} 40. Rc3
{[%clk 0:00:23.5]} 40... Qb1 {[%clk 0:00:11.3]} 41. Bd4 {[%clk 0:00:15.9]} 41...
Nf3 {[%clk 0:00:10.3]} 42. Rxf3 {[%clk 0:00:16.5]} 42... exf3+ {[%clk
0:00:10.2]} 43. Kxf3 {[%clk 0:00:17.1]} 43... Qd3+ {[%clk 0:00:10.5]} 44. Be3
{[%clk 0:00:16.9]} 44... Qd5+ {[%clk 0:00:10.5]} 45. Ke2 {[%clk 0:00:16.6]}
45... Rc8 {[%clk 0:00:11.1]} 46. Qb4 {[%clk 0:00:15.8]} 46... Rc2+ {[%clk
0:00:11.1]} 47. Ke1 {[%clk 0:00:16.3]} 47... Qh1# {[%clk 0:00:11.3]} 0-1

[Event "*** Titled Tuesday Blitz"]
[Site "Chess.com"]
[Date "2020.04.28"]
[Round "1"]
[White "INLOVEWITHF"]
[Black "quesfr"]
[Result "0-1"]
[WhiteElo "2526"]
[BlackElo "2217"]
[TimeControl "180+1"]
[EndTime "10:07:35 PDT"]
[Termination "quesfr won by resignation"]

1. e4 {[%clk 0:03:00.5]} 1... e6 {[%clk 0:02:59.3]} 2. d4 {[%clk 0:03:00.5]}
2... d5 {[%clk 0:02:59.7]} 3. Nc3 {[%clk 0:03:01]} 3... Nf6 {[%clk 0:02:59.5]}
4. e5 {[%clk 0:03:00.8]} 4... Nfd7 {[%clk 0:02:59.8]} 5. f4 {[%clk 0:03:01.5]}
5... c5 {[%clk 0:03:00.4]} 6. Nf3 {[%clk 0:03:02.1]} 6... Nc6 {[%clk 0:03:01]}
7. Be3 {[%clk 0:03:02.7]} 7... Be7 {[%clk 0:03:01.5]} 8. Qd2 {[%clk 0:03:01.2]}
8... O-O {[%clk 0:03:01.9]} 9. h4 {[%clk 0:03:01.8]} 9... a6 {[%clk 0:02:34.7]}
10. h5 {[%clk 0:02:59.6]} 10... b5 {[%clk 0:02:34.7]} 11. h6 {[%clk 0:02:54.1]}
11... g6 {[%clk 0:02:34]} 12. Nd1 {[%clk 0:02:53]} 12... b4 {[%clk 0:02:30.4]}
13. Nf2 {[%clk 0:02:52.2]} 13... a5 {[%clk 0:02:30.3]} 14. g4 {[%clk 0:02:46.7]}
14... cxd4 {[%clk 0:02:21.1]} 15. Nxd4 {[%clk 0:02:46.3]} 15... Nxd4 {[%clk
0:02:21.1]} 16. Bxd4 {[%clk 0:02:46.4]} 16... f6 {[%clk 0:02:18.6]} 17. Bd3
{[%clk 0:02:42.7]} 17... fxe5 {[%clk 0:02:16.7]} 18. fxe5 {[%clk 0:02:42.8]}
18... Bg5 {[%clk 0:02:15.1]} 19. Qe2 {[%clk 0:02:41.5]} 19... Nb6 {[%clk
0:02:11.6]} 20. Nh3 {[%clk 0:02:35.6]} 20... Nc4 {[%clk 0:01:59.6]} 21. Nxg5
{[%clk 0:02:12.7]} 21... Qxg5 {[%clk 0:01:59.2]} 22. b3 {[%clk 0:02:09.6]} 22...
Rf4 {[%clk 0:01:38.1]} 23. bxc4 {[%clk 0:01:44.4]} 23... Rxd4 {[%clk 0:01:37.5]}
24. cxd5 {[%clk 0:01:44.7]} 24... exd5 {[%clk 0:01:26.3]} 25. Rg1 {[%clk
0:00:45.6]} 25... Ra7 {[%clk 0:01:21.6]} 26. a3 {[%clk 0:00:45]} 26... Re7
{[%clk 0:01:17.2]} 27. Kd1 {[%clk 0:00:28.4]} 27... Rxe5 {[%clk 0:01:10.3]} 28.
Qd2 {[%clk 0:00:28.9]} 28... Bxg4+ {[%clk 0:01:09.2]} 29. Kc1 {[%clk 0:00:29.2]}
29... b3 {[%clk 0:00:43.4]} 30. Qxg5 {[%clk 0:00:23]} 30... Rxg5 {[%clk
0:00:44.3]} 31. Kb2 {[%clk 0:00:21.8]} 31... bxc2 {[%clk 0:00:42.8]} 32. Kc3
{[%clk 0:00:22.3]} 32... Rxd3+ {[%clk 0:00:19.2]} 33. Kxd3 {[%clk 0:00:21.6]}
33... Bf5+ {[%clk 0:00:19.4]} 34. Kd2 {[%clk 0:00:22.1]} 34... Rh5 {[%clk
0:00:17.9]} 35. Rh1 {[%clk 0:00:20.1]} 35... Rxh1 {[%clk 0:00:15.3]} 36. Rxh1
{[%clk 0:00:21]} 36... Be4 {[%clk 0:00:16]} 37. Rg1 {[%clk 0:00:20.5]} 37... Kf7
{[%clk 0:00:15.7]} 38. Kc3 {[%clk 0:00:19.7]} 38... Kf6 {[%clk 0:00:15]} 39. Kd4
{[%clk 0:00:19.9]} 39... g5 {[%clk 0:00:14.8]} 40. a4 {[%clk 0:00:17.7]} 40...
Kg6 {[%clk 0:00:14.4]} 41. Kc5 {[%clk 0:00:18.2]} 41... Bf3 {[%clk 0:00:12.8]}
42. Kb5 {[%clk 0:00:17.4]} 42... Bd1 {[%clk 0:00:12.9]} 43. Kxa5 {[%clk
0:00:16.9]} 43... c1=Q {[%clk 0:00:13.2]} 44. Kb6 {[%clk 0:00:16.7]} 44... Qe3+
{[%clk 0:00:12.9]} 0-1

[Event "*** Titled Tuesday Blitz"]
[Site "Chess.com"]
[Date "2020.04.28"]
[Round "1"]
[White "AlexandraSamaganova"]
[Black "dukicz123"]
[Result "0-1"]
[WhiteElo "2073"]
[BlackElo "2502"]
[TimeControl "180+1"]
[EndTime "10:07:35 PDT"]
[Termination "dukicz123 won by checkmate"]

1. c4 {[%clk 0:03:00.9]} 1... g6 {[%clk 0:02:59.5]} 2. Nc3 {[%clk 0:02:58.8]}
2... Bg7 {[%clk 0:02:56.1]} 3. g3 {[%clk 0:02:59]} 3... d6 {[%clk 0:02:55.7]} 4.
Bg2 {[%clk 0:02:58.3]} 4... Nc6 {[%clk 0:02:56.1]} 5. e3 {[%clk 0:02:58]} 5...
e5 {[%clk 0:02:54.9]} 6. Nge2 {[%clk 0:02:58.1]} 6... Nge7 {[%clk 0:02:43.3]} 7.
O-O {[%clk 0:02:57.2]} 7... O-O {[%clk 0:02:43.1]} 8. d3 {[%clk 0:02:50.4]} 8...
f5 {[%clk 0:02:41.3]} 9. Rb1 {[%clk 0:02:48.9]} 9... a5 {[%clk 0:02:40.8]} 10.
a3 {[%clk 0:02:45.4]} 10... Be6 {[%clk 0:02:40.4]} 11. b4 {[%clk 0:02:42.8]}
11... axb4 {[%clk 0:02:41.3]} 12. axb4 {[%clk 0:02:43.7]} 12... d5 {[%clk
0:02:40.6]} 13. b5 {[%clk 0:02:35.9]} 13... Na5 {[%clk 0:02:38.3]} 14. c5 {[%clk
0:02:17.1]} 14... d4 {[%clk 0:02:25.7]} 15. Na4 {[%clk 0:01:57.7]} 15... Bd5
{[%clk 0:02:13.1]} 16. exd4 {[%clk 0:01:35.1]} 16... Bxg2 {[%clk 0:02:08.3]} 17.
Kxg2 {[%clk 0:01:34.6]} 17... exd4 {[%clk 0:02:09.2]} 18. Bg5 {[%clk 0:01:25.6]}
18... h6 {[%clk 0:01:33.8]} 19. Bxe7 {[%clk 0:01:16.3]} 19... Qxe7 {[%clk
0:01:34.7]} 20. Nf4 {[%clk 0:01:16.7]} 20... Qf7 {[%clk 0:01:35]} 21. h4 {[%clk
0:01:05.8]} 21... g5 {[%clk 0:01:32.5]} 22. hxg5 {[%clk 0:01:05.3]} 22... hxg5
{[%clk 0:01:33.4]} 23. Nh5 {[%clk 0:00:56.2]} 23... Bh8 {[%clk 0:01:07.4]} 24.
Rh1 {[%clk 0:00:34.1]} 24... Rae8 {[%clk 0:01:02.3]} 25. Nb2 {[%clk 0:00:20.3]}
25... Qd5+ {[%clk 0:00:52.9]} 26. Qf3 {[%clk 0:00:19]} 26... Qxc5 {[%clk
0:00:53.2]} 27. Rhc1 {[%clk 0:00:10.8]} 27... Qd6 {[%clk 0:00:48.7]} 28. Nc4
{[%clk 0:00:08.7]} 28... Nxc4 {[%clk 0:00:47.9]} 29. Rxc4 {[%clk 0:00:09.3]}
29... Be5 {[%clk 0:00:43]} 30. Qxb7 {[%clk 0:00:07.9]} 30... f4 {[%clk
0:00:43.5]} 31. Qc6 {[%clk 0:00:06.2]} 31... f3+ {[%clk 0:00:32.8]} 32. Kg1
{[%clk 0:00:04.3]} 32... Re6 {[%clk 0:00:22.8]} 33. Qxd6 {[%clk 0:00:04.2]}
33... Bxd6 {[%clk 0:00:22.6]} 34. b6 {[%clk 0:00:03.7]} 34... cxb6 {[%clk
0:00:20.3]} 35. Rxb6 {[%clk 0:00:03.1]} 35... Rd8 {[%clk 0:00:18.4]} 36. Rb1
{[%clk 0:00:02.1]} 36... Rh6 {[%clk 0:00:18.3]} 37. g4 {[%clk 0:00:02.4]} 37...
Re6 {[%clk 0:00:18.3]} 38. Ng3 {[%clk 0:00:02.6]} 38... Bxg3 {[%clk 0:00:18]}
39. fxg3 {[%clk 0:00:03.5]} 39... Re2 {[%clk 0:00:18.5]} 40. Rb6 {[%clk
0:00:01.9]} 40... Rf8 {[%clk 0:00:13.5]} 41. Rg6+ {[%clk 0:00:01.7]} 41... Kh7
{[%clk 0:00:13.5]} 42. Rxg5 {[%clk 0:00:01.3]} 42... f2+ {[%clk 0:00:14]} 43.
Kg2 {[%clk 0:00:02.2]} 43... f1=Q# {[%clk 0:00:14]} 0-1

[Event "*** Titled Tuesday Blitz"]
[Site "Chess.com"]
[Date "2020.04.28"]
[Round "1"]
[White "Boudicca64"]
[Black "KinKaiser"]
[Result "0-1"]
[WhiteElo "1904"]
[BlackElo "2480"]
[TimeControl "180+1"]
[EndTime "10:07:35 PDT"]
[Termination "KinKaiser won on time"]

1. d4 {[%clk 0:02:54.8]} 1... d5 {[%clk 0:02:59.6]} 2. c4 {[%clk 0:02:54.6]}
2... c6 {[%clk 0:02:59.5]} 3. Nf3 {[%clk 0:02:53.6]} 3... Nf6 {[%clk 0:02:59.2]}
4. Nc3 {[%clk 0:02:50.2]} 4... dxc4 {[%clk 0:02:58.2]} 5. e3 {[%clk 0:02:49.7]}
5... b5 {[%clk 0:02:56.9]} 6. a4 {[%clk 0:02:49.8]} 6... b4 {[%clk 0:02:57]} 7.
Na2 {[%clk 0:02:49.6]} 7... a5 {[%clk 0:02:57]} 8. Bxc4 {[%clk 0:02:50.1]} 8...
e6 {[%clk 0:02:57]} 9. O-O {[%clk 0:02:50.4]} 9... Ba6 {[%clk 0:02:55.9]} 10.
Qe2 {[%clk 0:02:38.3]} 10... Bxc4 {[%clk 0:02:49.8]} 11. Qxc4 {[%clk 0:02:39.2]}
11... Qd5 {[%clk 0:02:49.3]} 12. Nd2 {[%clk 0:02:31.6]} 12... Be7 {[%clk
0:02:39.6]} 13. b3 {[%clk 0:02:31.3]} 13... Nbd7 {[%clk 0:02:35.4]} 14. Bb2
{[%clk 0:02:29.1]} 14... Nb6 {[%clk 0:02:31.8]} 15. Qd3 {[%clk 0:02:23.4]} 15...
O-O {[%clk 0:02:29.9]} 16. e4 {[%clk 0:02:17.3]} 16... Qd7 {[%clk 0:02:26.7]}
17. Qe3 {[%clk 0:02:06.2]} 17... Rac8 {[%clk 0:02:11.8]} 18. Rac1 {[%clk
0:02:04.2]} 18... Rfd8 {[%clk 0:02:05]} 19. Rc2 {[%clk 0:01:54.7]} 19... Qb7
{[%clk 0:01:41.2]} 20. Nf3 {[%clk 0:01:43.7]} 20... Nbd7 {[%clk 0:01:36.7]} 21.
e5 {[%clk 0:00:48.2]} 21... Nd5 {[%clk 0:01:34.7]} 22. Qe4 {[%clk 0:00:48.6]}
22... c5 {[%clk 0:01:30.1]} 23. Nc1 {[%clk 0:00:35.6]} 23... cxd4 {[%clk
0:01:20.1]} 24. Bxd4 {[%clk 0:00:16.9]} 24... Rxc2 {[%clk 0:01:18.3]} 25. Qxc2
{[%clk 0:00:17.8]} 25... Rc8 {[%clk 0:01:17]} 26. Qe4 {[%clk 0:00:17.7]} 26...
Nc5 {[%clk 0:01:15.6]} 27. Bxc5 {[%clk 0:00:16.8]} 27... Rxc5 {[%clk 0:01:06.1]}
28. Nd3 {[%clk 0:00:17.1]} 28... Rc3 {[%clk 0:00:58.3]} 29. Nd4 {[%clk
0:00:17.6]} 29... Rc8 {[%clk 0:00:53]} 30. Rc1 {[%clk 0:00:13.1]} 30... Rxc1+
{[%clk 0:00:49]} 31. Nxc1 {[%clk 0:00:14]} 31... Qc7 {[%clk 0:00:46.4]} 32. Qc2
{[%clk 0:00:13.9]} 32... Qxe5 {[%clk 0:00:35.8]} 33. Qc8+ {[%clk 0:00:11.9]}
33... Bf8 {[%clk 0:00:35.9]} 34. Nce2 {[%clk 0:00:10]} 34... Nc3 {[%clk
0:00:28.9]} 35. Nc6 {[%clk 0:00:07]} 35... Nxe2+ {[%clk 0:00:25.4]} 36. Kf1
{[%clk 0:00:07.4]} 36... Qd6 {[%clk 0:00:22.2]} 37. Kxe2 {[%clk 0:00:07]} 37...
g6 {[%clk 0:00:19.1]} 38. Kf1 {[%clk 0:00:05]} 38... Kg7 {[%clk 0:00:17.9]} 39.
g3 {[%clk 0:00:02.8]} 39... Be7 {[%clk 0:00:14.6]} 40. Nxe7 {[%clk 0:00:01.7]}
40... Qxe7 {[%clk 0:00:14.7]} 41. Qa8 {[%clk 0:00:02]} 41... Qc5 {[%clk
0:00:13.7]} 42. Qa6 {[%clk 0:00:01.3]} 42... Qc3 {[%clk 0:00:11.5]} 0-1